fUSD/lending_fUSD_20251028
["ID","MTS","AMOUNT","RATE_DAILY","PERIOD"]
[392561337,1761667480437,-150.0,0.00040111,120]
[392561338,1761667480507,-150.0,0.00040111,120]
[392561339,1761667480575,-1282.53557276,0.000405,120]
[392561340,1761667480644,-2000.0,0.000407,120]
[392561341,1761667480712,-2000.0,0.000407,120]
[392561342,1761667480772,-2000.0,0.000407,120]
[392561343,1761667480834,-190.0,0.000407,120]
[392561344,1761667480897,-320.88452476,0.000408,60]
[392561345,1761667480966,-581.21,0.000409,120]
[392561346,1761667481033,-150.0,0.00041,120]
[392561347,1761667481093,-1000.0,0.00041041,30]
[392561348,1761667481155,-1000.0,0.00041041,30]
[392561349,1761667481217,-1097.83989081,0.00041041,30]
[392561350,1761667481282,-1095.50716871,0.00041041,30]
[392561351,1761667481345,-150.0,0.00041076,120]
[392561352,1761667481406,-1080.0,0.00041096,120]
[392561353,1761667481465,-500.0,0.0004111,60]
[392561354,1761667481528,-500.0,0.000412,120]
[392561355,1761667481593,-500.0,0.000412,120]
[392561356,1761667481656,-500.0,0.000412,120]
[392561357,1761667481719,-273.396891,0.00041317,120]
[392561358,1761667481807,-150.0,0.00041727,120]
[392561359,1761667481879,-1282.53557276,0.000418,120]
[392561360,1761667481950,-200.0,0.00041817,120]
[392561361,1761667482025,-155.0,0.00041846,120]
[392561362,1761667482089,-286.63689284,0.00041999,120]
[392561363,1761667482155,-208.47,0.00042,30]
[392561364,1761667482217,-234.64957983,0.00042,30]
[392561365,1761667482282,-421.3072192,0.00042,30]
[392561366,1761667482348,-554.52777117,0.00042,120]
[392561367,1761667482414,-719.73503727,0.00042,120]
[392561368,1761667482477,-250.0,0.00042,120]
[392561369,1761667482548,-250.0,0.00042,120]
[392561370,1761667482615,-1627.79189372,0.00042,120]
[392561371,1761667482679,-200000.0,0.00042,120]
[392561372,1761667482744,-150.0,0.00042,120]
[392561373,1761667482816,-900.0,0.00042086,60]
[392561374,1761667482887,-426.27237247,0.000421,120]
[392561375,1761667482958,-500.0,0.00042206,60]
[392561376,1761667483025,-50790.82073931,0.000425,120]
[392561377,1761667483090,-207.65017252,0.00042573,120]
[392561378,1761667483161,-985.59,0.0004278,120]
[392561379,1761667483231,-800.0,0.0004288,120]
[392561380,1761667483295,-500.0,0.0004289,30]
[392561381,1761667483363,-671.27536599,0.00043,120]
[392561382,1761667483431,-166.68973013,0.00043,120]
[392561383,1761667483503,-535.27585692,0.00043,120]
[392561384,1761667483579,-1000.0,0.00043,60]
[392561385,1761667483651,-150.0,0.00043,120]
[392561386,1761667483720,-278.1260052,0.00043,120]
[392561387,1761667483790,-1236.37,0.00043,30]
[392561388,1761667483860,-20417.37377155,0.00043,30]
[392561389,1761667483925,-150.0,0.00043,120]
[392561390,1761667483997,-20071.88938017,0.00043,120]
[392561391,1761667484067,-203.7,0.00043014,120]
[392561392,1761667484132,-812.61,0.0004304,120]
[392561393,1761667484200,-304.49,0.00043137,30]
[392561394,1761667484266,-370.87,0.00043143,30]
[392561395,1761667484335,-900.0,0.00043182,60]
[392561396,1761667484412,-150.0,0.00043231,120]
[392561397,1761667484483,-684.28742181,0.0004328,120]
[392561398,1761667484563,-500.0,0.00043302,60]
[392561399,1761667484630,-200.0,0.00043317,120]
[392561400,1761667484694,-1444.0,0.00043562,120]
[392561401,1761667484757,-1060.0,0.0004365,30]
[392561402,1761667484819,-320.09902755,0.000437,120]
[392561403,1761667484884,-809.59,0.00043767,30]
[392561404,1761667484958,-809.59,0.00043767,30]
[392561405,1761667485023,-809.59,0.00043767,30]
[392561406,1761667485089,-809.59,0.00043767,30]
[392561407,1761667485154,-328.87,0.000438,120]
[392561408,1761667485218,-1000.0,0.000438,30]
[392561409,1761667485282,-263.13790342,0.000438,120]
[392561410,1761667485347,-202.03955185,0.000438,30]
[392561411,1761667485413,-1083.83041441,0.000438,120]
[392561412,1761667485483,-211.97780391,0.000438,120]
[392561413,1761667485553,-3821.28324086,0.000438,120]
[392561414,1761667485620,-500.0,0.00043835,120]
[392561415,1761667485686,-500.0,0.00043835,120]
[392561416,1761667485752,-500.0,0.00043835,120]
[392561417,1761667485819,-500.0,0.00043835,120]
[392561418,1761667485890,-500.0,0.00043835,120]
[392561419,1761667485967,-500.0,0.00043835,120]
[392561420,1761667486038,-500.0,0.00043835,120]
[392561421,1761667486297,-500.0,0.00043835,120]
[392561422,1761667486377,-500.0,0.00043835,120]
[392561423,1761667486443,-500.0,0.00043835,120]
[392561424,1761667486508,-500.0,0.00043835,120]
[392561425,1761667486573,-500.0,0.00043835,120]
[392561426,1761667486639,-500.0,0.00043835,120]
[392561427,1761667486704,-500.0,0.00043835,120]
[392561428,1761667486771,-500.0,0.00043835,120]
[392561429,1761667486834,-500.0,0.00043835,120]
[392561430,1761667486898,-500.0,0.00043835,120]
[392561431,1761667486969,-500.0,0.00043835,120]
[392561432,1761667487037,-500.0,0.00043835,120]
[392561433,1761667487104,-500.0,0.00043835,120]
[392561434,1761667487171,-500.0,0.00043835,120]
[392561435,1761667487236,-500.0,0.00043835,120]
[392561436,1761667487302,-500.0,0.00043835,120]
[392561437,1761667487370,-339.25720772,0.00043835,120]
[392561438,1761667487440,-500.0,0.00043836,120]
[392561439,1761667487512,-500.0,0.00043836,120]
[392561440,1761667487581,-500.0,0.00043836,120]
[392561441,1761667487648,-500.0,0.00043836,120]
[392561442,1761667487713,-500.0,0.00043836,120]
[392561443,1761667487774,-500.0,0.00043836,120]
[392561444,1761667487839,-500.0,0.00043836,120]
[392561445,1761667487905,-500.0,0.00043836,120]
[392561446,1761667487978,-500.0,0.00043836,120]
[392561447,1761667488053,-500.0,0.00043836,120]
[392561448,1761667488125,-500.0,0.00043836,120]
[392561449,1761667488202,-513.149571,0.00043836,120]
[392561450,1761667488275,-800.0,0.0004388,120]
[392561451,1761667488347,-2986.979356,0.000439,120]
[392561452,1761667488423,-1612.5540065,0.00043999,120]
[392561453,1761667488502,-1004.33865603,0.00044,120]
[392561454,1761667488578,-598.92449035,0.00044,120]
[392561455,1761667488647,-841.90407532,0.00044,120]
[392561456,1761667488712,-1063.75,0.00044,120]
[392561457,1761667488778,-200.0,0.00044,120]
[392561458,1761667488842,-9000.0,0.00044,120]
[392561459,1761667488907,-700.9290552,0.00044,30]
[392561460,1761667488976,-2040.70209249,0.00044,120]
[392561461,1761667489057,-151.0,0.00044,120]
[392561462,1761667489144,-153.0,0.00044,120]
[392561463,1761667489230,-150.0,0.00044,120]
[392561464,1761667489303,-809.59,0.00044041,30]
[392561465,1761667489377,-809.59,0.00044041,30]
[392561466,1761667489446,-1060.0,0.000441,30]
[392561467,1761667489514,-1430.83287246,0.00044103,120]
[392561468,1761667489578,-2204.67158857,0.00044167,70]
[392561469,1761667489649,-150.0,0.00044189,120]
[392561470,1761667489715,-900.0,0.00044278,60]
[392561471,1761667489783,-809.59,0.00044315,30]
[392561472,1761667489846,-809.59,0.00044315,30]
[392561473,1761667489911,-413.1780492,0.000444,120]
[392561474,1761667489979,-418.31476645,0.000445,120]
[392561475,1761667490045,-2909.56557738,0.000445,120]
[392561476,1761667490113,-1060.0,0.0004455,30]
[392561477,1761667490177,-809.59,0.00044589,30]
[392561478,1761667490239,-809.59,0.00044589,30]
[392561479,1761667490305,-6128.54232852,0.00044676,120]
[392561480,1761667490370,-2314.0,0.000447,68]
[392561481,1761667490432,-950.21,0.00044786,30]
[392561482,1761667490504,-1367.27,0.00044786,30]
[392561483,1761667490571,-335.890692,0.00044817,120]
[392561484,1761667490639,-809.59,0.00044863,30]
[392561485,1761667490705,-809.59,0.00044863,30]
[392561486,1761667490775,-804.0,0.0004488,120]
[392561487,1761667490835,-363.38595757,0.0004489,120]
[392561488,1761667490901,-156.01491274,0.00044909,45]
[392561489,1761667490970,-1000.0,0.00044999,120]
[392561490,1761667491040,-661.09226433,0.00045,120]
[392561491,1761667491105,-464.24638379,0.00045,120]
[392561492,1761667491174,-259.23789932,0.00045,120]
[392561493,1761667491209,-500000.0,0.00045,120]
[392561494,1761667491241,-2393.66318484,0.00045,120]
[392561495,1761667491273,-476.82960453,0.00045,120]
[392561496,1761667491305,-151.57335051,0.00045,120]
[392561497,1761667491337,-544.2178465,0.00045,30]
[392561498,1761667491370,-500000.0,0.00045,120]
[392561499,1761667491402,-500.0,0.00045,120]
[392561500,1761667491435,-500000.0,0.00045,120]
[392561501,1761667491469,-500000.0,0.00045,120]
[392561502,1761667491506,-15946.99,0.00045,120]
[392561503,1761667491540,-4785.3,0.00045,120]
[392561504,1761667491573,-156.6,0.00045,85]
[392561505,1761667491613,-3189.32,0.00045,120]
[392561506,1761667491650,-1513.16832649,0.00045,120]
[392561507,1761667491686,-359.0,0.00045,120]
[392561508,1761667491721,-549.0814286,0.00045,120]
[392561509,1761667491759,-3813.0,0.00045,120]
[392561510,1761667491794,-1245.16123999,0.00045,120]
[392561511,1761667491828,-300.0,0.00045,120]
[392561512,1761667491863,-150.0,0.00045,120]
[392561513,1761667491900,-150.0,0.00045,120]
[392561514,1761667491934,-420.0,0.00045,120]
[392561515,1761667491970,-150.0,0.00045,120]
[392561516,1761667492006,-369.43725036,0.00045,120]
[392561517,1761667492041,-3719.0,0.00045,60]
[392561518,1761667492077,-500000.0,0.00045,120]
[392561519,1761667492112,-329443.95689087,0.00045,120]
[392561520,1761667504356,-207.5211322,0.00032,120]
[392561521,1761667504397,-172.38372829,0.00032,120]
[392561522,1761667504436,-177.64995752,0.00032,120]
[392561523,1761667504476,-579.64373094,0.00032,120]
[392561524,1761667504550,-207.5211322,0.00033,120]
[392561525,1761667504591,-172.38372829,0.00033,120]
[392561526,1761667504630,-579.64373094,0.00033,120]
[392561527,1761667504684,-579.64373094,0.000339,120]
[392561528,1761667504739,-579.64373094,0.00035,120]
[392561529,1761667504794,-579.64373094,0.00036,120]
[392561530,1761667504860,-500.0,0.00044398,60]
[392561531,1761667504902,-278616.04310913,0.00045,120]
[392561532,1761667504943,-411636.0,0.00045,120]
[392561533,1761667504983,-1000000.0,0.00045,120]
[392561534,1761667505024,-1000000.0,0.00045,120]
[392561535,1761667505065,-1000000.0,0.00045,120]
[392561536,1761667505106,-305412.27855767,0.00045,120]
[392561537,1761667508396,-694587.72144233,0.00045,120]
[392561538,1761667508437,-1000000.0,0.00045,120]
[392561539,1761667508479,-1000000.0,0.00045,120]
[392561540,1761667508527,-1000000.0,0.00045,120]
[392561541,1761667508570,-305412.27855767,0.00045,120]
[392561542,1761667512144,-694587.72144233,0.00045,120]
[392561543,1761667512186,-150.0,0.00045,120]
[392561544,1761667512223,-296.70257734,0.00045,120]
[392561545,1761667512263,-4048.342028,0.00045,120]
[392561546,1761667512300,-1060.0,0.00045,30]
[392561547,1761667512339,-580.057508,0.00045,30]
[392561548,1761667512378,-151.034,0.00045,30]
[392561549,1761667512417,-1000000.0,0.0004501,120]
[392561550,1761667512456,-1000000.0,0.0004502,120]
[392561551,1761667512494,-525000.0,0.0004503,120]
[392561552,1761667512534,-809.59,0.00045137,30]
[392561553,1761667512571,-809.59,0.00045137,30]
[392561554,1761667512610,-999.0,0.00045205,120]
[392561555,1761667512646,-500.0,0.000453,120]
[392561556,1761667512682,-509.0,0.0004537,30]
[392561557,1761667512718,-900.0,0.00045374,60]
[392561558,1761667512756,-809.59,0.00045411,30]
[392561559,1761667512793,-809.59,0.00045411,30]
[392561560,1761667512831,-1060.0,0.0004545,30]
[392561561,1761667512868,-500.0,0.00045494,60]
[392561562,1761667512908,-500000.0,0.000455,120]
[392561563,1761667512946,-1000.38214633,0.000455,120]
[392561564,1761667512987,-265419.400298,0.000455,120]
[392561566,1761667530241,-34580.599702,0.000455,120]
[392561567,1761667530283,-1000000.0,0.000455,120]
[392561568,1761667530324,-1000000.0,0.000455,120]
[392561569,1761667530362,-192.50565033,0.00045564,30]
[392561570,1761667530403,-500.0,0.00045678,120]
[392561571,1761667530441,-500.0,0.00045678,120]
[392561572,1761667530479,-500.0,0.00045678,120]
[392561573,1761667530519,-500.0,0.00045678,120]
[392561574,1761667530556,-500.0,0.00045678,120]
[392561575,1761667530593,-500.0,0.00045678,120]
[392561576,1761667530630,-209.0,0.00045678,120]
[392561577,1761667530670,-500.0,0.00045678,120]
[392561578,1761667530706,-500.0,0.00045678,120]
[392561579,1761667530744,-809.59,0.00045685,30]
[392561580,1761667530783,-809.59,0.00045685,30]
[392561581,1761667530820,-284.8759898,0.000457,120]
[392561582,1761667530857,-153.0,0.000457,120]
[392561583,1761667530895,-186.33899509,0.000459,30]
[392561584,1761667530932,-1521.28788684,0.000459,120]
[392561585,1761667530971,-1060.0,0.000459,30]
[392561586,1761667531009,-809.59,0.00045959,30]
[392561587,1761667531049,-809.59,0.00045959,30]
[392561588,1761667531092,-1000000.0,0.00046,120]
[392561589,1761667531131,-176.13611846,0.00046,120]
[392561590,1761667531169,-184.38244145,0.00046,120]
[392561591,1761667531208,-1000.0,0.00046,30]
[392561592,1761667531245,-204.098044,0.00046,30]
[392561593,1761667531281,-822.55685539,0.00046,30]
[392561594,1761667531322,-300000.0,0.00046,120]
[392561595,1761667531360,-200.0,0.00046,120]
[392561596,1761667531399,-7128.4092639,0.00046,120]
[392561597,1761667531436,-347.44437756,0.00046,120]
[392561599,1761667531478,-644511.00467518,0.00046,120]
[392561604,1761667548543,-166.66,0.00027102,30]
[392561605,1761667548588,-166.66,0.00028052,30]
[392561606,1761667548631,-166.66,0.00029003,30]
[392561607,1761667548682,-166.66,0.00029954,30]
[392561608,1761667548927,-936.15845881,0.00037,120]
[392561609,1761667548975,-56411.58425398,0.00037318,30]
[392561610,1761667549040,-150.0,0.00044138,120]
[392561611,1761667549078,-784.77659558,0.00045045,120]
[392561612,1761667549132,-355488.99532482,0.00046,120]
[392561613,1761667549173,-1000000.0,0.00046,120]
[392561614,1761667549211,-150.0,0.00046,120]
[392561615,1761667549250,-992.27667174,0.00046,120]
[392561616,1761667549289,-208.47,0.00046,30]
[392561617,1761667549327,-151.0,0.000461,120]
[392561618,1761667549365,-662.14247255,0.0004613,120]
[392561619,1761667549402,-501.97986512,0.000462,120]
[392561620,1761667549439,-809.59,0.00046233,30]
[392561621,1761667549477,-809.59,0.00046233,30]
[392561622,1761667549515,-1060.0,0.0004635,30]
[392561623,1761667549556,-576.98619985,0.000464,120]
[392561624,1761667549596,-497.67311625,0.0004647,60]
[392561625,1761667549633,-500000.0,0.000465,120]
[392561626,1761667549671,-1000000.0,0.000465,120]
[392561627,1761667549934,-1000000.0,0.000465,120]
[392561628,1761667549976,-79142.1370413,0.000465,120]
[392561629,1761667559891,-920857.8629587,0.000465,120]
[392561630,1761667559958,-809.59,0.00046507,30]
[392561631,1761667560023,-809.59,0.00046507,30]
[392561632,1761667560094,-500.0,0.00046575,120]
[392561633,1761667560167,-500.0,0.00046575,120]
[392561634,1761667560230,-500.0,0.00046575,120]
[392561635,1761667560277,-500.0,0.00046575,120]
[392561636,1761667560318,-500.0,0.00046575,120]
[392561637,1761667560359,-500.0,0.00046575,120]
[392561638,1761667560401,-500.0,0.00046575,120]
[392561639,1761667560443,-500.0,0.00046575,120]
[392561640,1761667560484,-500.0,0.00046575,120]
[392561641,1761667560530,-500.0,0.00046575,120]
[392561642,1761667560570,-649.77372898,0.00046575,120]
[392561643,1761667560611,-500.0,0.00046575,30]
[392561644,1761667560652,-500.0,0.00046575,30]
[392561645,1761667560692,-500.0,0.00046575,30]
[392561646,1761667560732,-500.0,0.00046575,30]
[392561647,1761667560772,-500.0,0.00046575,30]
[392561648,1761667560812,-287.46647012,0.00046575,30]
[392561649,1761667560853,-500.0,0.00046575,30]
[392561650,1761667560892,-500.0,0.00046575,30]
[392561651,1761667560945,-500.0,0.00046575,30]
[392561652,1761667560986,-520.0,0.00046575,30]
[392561653,1761667561024,-151.0,0.00046575,30]
[392561654,1761667561063,-500.0,0.00046575,30]
[392561655,1761667561102,-300.0,0.00046575,30]
[392561656,1761667561140,-539.24,0.00046575,30]
[392561657,1761667561179,-151.0,0.00046575,30]
[392561658,1761667561219,-500.0,0.00046575,30]
[392561659,1761667561258,-220.0,0.00046575,30]
[392561660,1761667561298,-559.19188,0.00046575,30]
[392561661,1761667561338,-151.0,0.00046575,30]
[392561662,1761667561377,-500.0,0.00046575,30]
[392561663,1761667561415,-220.0,0.00046575,30]
[392561664,1761667561455,-6888.0,0.00046575,30]
[392561665,1761667561494,-250.0,0.00046575,30]
[392561666,1761667561534,-311.1,0.00046575,30]
[392561667,1761667561576,-579.88197956,0.00046575,30]
[392561668,1761667561615,-153.75323229,0.00046575,30]
[392561669,1761667561656,-500.0,0.00046575,30]
[392561670,1761667561695,-7142.856,0.00046575,30]
[392561671,1761667561733,-221.23074742,0.00046575,30]
[392561672,1761667561771,-151.0,0.00046575,30]
[392561673,1761667561811,-500.0,0.00046575,30]
[392561674,1761667561849,-250.0,0.00046575,30]
[392561675,1761667561888,-322.6107,0.00046575,30]
[392561676,1761667561930,-500.0,0.00046575,30]
[392561677,1761667561972,-7407.141672,0.00046575,30]
[392561678,1761667562012,-601.3376128,0.00046575,30]
[392561679,1761667562316,-500.0,0.00046575,30]
[392561680,1761667562381,-151.0,0.00046575,30]
[392561681,1761667562423,-250.0,0.00046575,30]
[392561682,1761667562460,-334.5472959,0.00046575,30]
[392561683,1761667562498,-500.0,0.00046575,30]
[392561684,1761667562537,-414.0,0.00046575,30]
[392561685,1761667562579,-7681.20591386,0.00046575,30]
[392561686,1761667562618,-151.0,0.00046575,30]
[392561687,1761667562659,-500.0,0.00046575,30]
[392561688,1761667562704,-250.0,0.00046575,30]
[392561689,1761667562746,-346.92554585,0.00046575,30]
[392561690,1761667562788,-500.0,0.00046575,30]
[392561691,1761667562829,-429.318,0.00046575,30]
[392561692,1761667562870,-151.0,0.00046575,30]
[392561693,1761667562914,-500.0,0.00046575,30]
[392561694,1761667562957,-250.0,0.00046575,30]
[392561695,1761667562997,-359.76179104,0.00046575,30]
[392561696,1761667563040,-500.0,0.00046575,30]
[392561697,1761667563083,-445.202766,0.00046575,30]
[392561698,1761667563124,-623.58710448,0.00046575,30]
[392561699,1761667563165,-151.0,0.00046575,30]
[392561700,1761667563207,-500.0,0.00046575,30]
[392561701,1761667563248,-151.0,0.00046575,30]
[392561702,1761667563289,-250.0,0.00046575,30]
[392561703,1761667563329,-373.07297731,0.00046575,30]
[392561704,1761667563370,-7965.41053268,0.00046575,30]
[392561705,1761667563410,-461.67526834,0.00046575,30]
[392561706,1761667563461,-500.0,0.00046575,30]
[392561707,1761667563506,-708.50142045,0.00046575,30]
[392561708,1761667563551,-500.0,0.00046575,30]
[392561709,1761667563595,-151.0,0.00046575,30]
[392561710,1761667563635,-250.0,0.00046575,30]
[392561711,1761667563676,-500.0,0.00046575,30]
[392561712,1761667563716,-151.0,0.00046575,30]
[392561713,1761667563756,-386.87667747,0.00046575,30]
[392561714,1761667563795,-250.0,0.00046575,30]
[392561715,1761667563835,-478.75725327,0.00046575,30]
[392561716,1761667563875,-8260.13072239,0.00046575,30]
[392561717,1761667563915,-500.0,0.00046575,30]
[392561718,1761667563953,-500.0,0.00046575,30]
[392561719,1761667563992,-151.0,0.00046575,30]
[392561720,1761667564030,-250.0,0.00046575,30]
[392561721,1761667564069,-500.0,0.00046575,30]
[392561722,1761667564112,-316.78324134,0.00046575,30]
[392561723,1761667564151,-250.0,0.00046575,30]
[392561724,1761667564191,-496.47127164,0.00046575,30]
[392561725,1761667564232,-8565.75555911,0.00046575,30]
[392561726,1761667564273,-500.0,0.00046575,30]
[392561727,1761667564312,-151.0,0.00046575,30]
[392561728,1761667564352,-250.0,0.00046575,30]
[392561729,1761667564393,-500.0,0.00046575,30]
[392561730,1761667564437,-500.0,0.00046575,30]
[392561731,1761667564478,-250.0,0.00046575,30]
[392561732,1761667564523,-514.84070869,0.00046575,30]
[392561733,1761667564565,-8882.6885148,0.00046575,30]
[392561734,1761667564605,-500.0,0.00046575,30]
[392561735,1761667564645,-250.0,0.00046575,30]
[392561736,1761667564685,-500.0,0.00046575,30]
[392561737,1761667564723,-151.0,0.00046575,30]
[392561738,1761667564764,-500.0,0.00046575,30]
[392561739,1761667564812,-250.0,0.00046575,30]
[392561740,1761667564880,-533.88981491,0.00046575,30]
[392561742,1761667564947,-1603.36992967,0.00046575,30]
[392561743,1761667565010,-250.0,0.00046575,30]
[392561744,1761667565073,-500.0,0.00046575,30]
[392561745,1761667565132,-500.0,0.00046575,30]
[392561746,1761667565196,-250.0,0.00046575,30]
[392561747,1761667565260,-553.64373807,0.00046575,30]
[392561748,1761667565325,-250.0,0.00046575,30]
[392561749,1761667565388,-500.0,0.00046575,30]
[392561750,1761667565448,-500.0,0.00046575,30]
[392561751,1761667565487,-250.0,0.00046575,30]
[392561752,1761667565528,-574.12855637,0.00046575,30]
[392561753,1761667565568,-500.0,0.00046575,30]
[392561754,1761667565608,-500.0,0.00046575,30]
[392561755,1761667565650,-500.0,0.00046575,30]
[392561756,1761667565688,-500.0,0.00046575,30]
[392561757,1761667565728,-250.0,0.00046575,30]
[392561758,1761667565766,-595.37131296,0.00046575,30]
[392561759,1761667565804,-500.0,0.00046575,30]
[392561760,1761667565842,-250.0,0.00046575,30]
[392561761,1761667565878,-500.0,0.00046575,30]
[392561762,1761667565916,-500.0,0.00046575,30]
[392561763,1761667565954,-518.5,0.00046575,30]
[392561764,1761667565992,-617.40005154,0.00046575,30]
[392561765,1761667566029,-250.0,0.00046575,30]
[392561766,1761667566067,-500.0,0.00046575,30]
[392561767,1761667566105,-250.0,0.00046575,30]
[392561768,1761667566142,-500.0,0.00046575,30]
[392561769,1761667566179,-151.0,0.00046575,30]
[392561770,1761667566218,-151.0,0.00046575,30]
[392561771,1761667566256,-500.0,0.00046575,30]
[392561772,1761667566293,-640.24385345,0.00046575,30]
[392561773,1761667566330,-250.0,0.00046575,30]
[392561774,1761667566368,-500.0,0.00046575,30]
[392561775,1761667566405,-250.0,0.00046575,30]
[392561776,1761667566442,-500.0,0.00046575,30]
[392561777,1761667566479,-537.6845,0.00046575,30]
[392561778,1761667566515,-151.0,0.00046575,30]
[392561779,1761667566559,-151.0,0.00046575,30]
[392561780,1761667566598,-500.0,0.00046575,30]
[392561781,1761667566635,-663.93287602,0.00046575,30]
[392561782,1761667566844,-250.0,0.00046575,30]
[392561783,1761667566886,-500.0,0.00046575,30]
[392561784,1761667566923,-500.0,0.00046575,30]
[392561785,1761667566960,-250.0,0.00046575,30]
[392561786,1761667566997,-500.0,0.00046575,30]
[392561787,1761667567034,-557.5788265,0.00046575,30]
[392561788,1761667567070,-688.49839244,0.00046575,30]
[392561789,1761667567108,-151.0,0.00046575,30]
[392561790,1761667567144,-250.0,0.00046575,30]
[392561791,1761667567182,-151.0,0.00046575,30]
[392561792,1761667567220,-500.0,0.00046575,30]
[392561793,1761667567257,-500.0,0.00046575,30]
[392561794,1761667567295,-250.0,0.00046575,30]
[392561795,1761667567335,-500.0,0.00046575,30]
[392561796,1761667567374,-713.97283296,0.00046575,30]
[392561797,1761667567413,-250.0,0.00046575,30]
[392561798,1761667567451,-151.0,0.00046575,30]
[392561799,1761667567489,-500.0,0.00046575,30]
[392561800,1761667567527,-500.0,0.00046575,30]
[392561801,1761667567565,-250.0,0.00046575,30]
[392561802,1761667567604,-500.0,0.00046575,30]
[392561803,1761667567642,-740.38982778,0.00046575,30]
[392561804,1761667567680,-250.0,0.00046575,30]
[392561805,1761667567718,-151.0,0.00046575,30]
[392561806,1761667567755,-151.0,0.00046575,30]
[392561807,1761667567793,-500.0,0.00046575,30]
[392561808,1761667567830,-500.0,0.00046575,30]
[392561809,1761667567866,-250.0,0.00046575,30]
[392561810,1761667567903,-500.0,0.00046575,30]
[392561811,1761667567939,-767.7842514,0.00046575,30]
[392561812,1761667567976,-151.0,0.00046575,30]
[392561813,1761667568014,-250.0,0.00046575,30]
[392561814,1761667568053,-151.0,0.00046575,30]
[392561815,1761667568094,-500.0,0.00046575,30]
[392561816,1761667568134,-500.0,0.00046575,30]
[392561817,1761667568176,-500.0,0.00046575,30]
[392561818,1761667568216,-796.19226871,0.00046575,30]
[392561819,1761667568257,-250.0,0.00046575,30]
[392561820,1761667568296,-151.0,0.00046575,30]
[392561821,1761667568336,-151.0,0.00046575,30]
[392561822,1761667568375,-500.0,0.00046575,30]
[392561823,1761667568414,-500.0,0.00046575,30]
[392561824,1761667568452,-825.65138265,0.00046575,30]
[392561825,1761667568491,-250.0,0.00046575,30]
[392561826,1761667568531,-151.0,0.00046575,30]
[392561827,1761667568573,-151.0,0.00046575,30]
[392561828,1761667568613,-250.0,0.00046575,30]
[392561829,1761667568653,-500.0,0.00046575,30]
[392561830,1761667568691,-500.0,0.00046575,30]
[392561831,1761667568729,-250.0,0.00046575,30]
[392561832,1761667568767,-151.0,0.00046575,30]
[392561833,1761667568805,-500.0,0.00046575,30]
[392561834,1761667568845,-250.0,0.00046575,30]
[392561835,1761667568882,-638.13225708,0.00046575,30]
[392561836,1761667568919,-151.0,0.00046575,30]
[392561837,1761667568958,-250.0,0.00046575,30]
[392561838,1761667568995,-250.0,0.00046575,30]
[392561839,1761667569032,-500.0,0.00046575,30]
[392561840,1761667569072,-151.0,0.00046575,30]
[392561841,1761667569110,-265.34328611,0.00046575,30]
[392561842,1761667569149,-250.0,0.00046575,30]
[392561843,1761667569188,-500.0,0.00046575,30]